[Event "*** Titled Tuesday Blitz"]
[Site "Chess.com"]
[Date "2021.02.09"]
[Round "1"]
[White "jacky72"]
[Black "malakismayil"]
[Result "1-0"]
[WhiteElo "2683"]
[BlackElo "2354"]
[TimeControl "180+1"]
[EndTime "10:06:26 PST"]
[Termination "jacky72 won by checkmate"]

1. d4 {[%clk 0:02:59.2]} 1... Nf6 {[%clk 0:02:58.7]} 2. c4 {[%clk 0:02:58.5]}
2... e6 {[%clk 0:02:58.7]} 3. Nf3 {[%clk 0:02:57.9]} 3... Bb4+ {[%clk
0:02:58.2]} 4. Bd2 {[%clk 0:02:56.9]} 4... Qe7 {[%clk 0:02:58.2]} 5. Nc3 {[%clk
0:02:55.8]} 5... b6 {[%clk 0:02:54.5]} 6. g3 {[%clk 0:02:55.8]} 6... Bb7 {[%clk
0:02:54.6]} 7. Bg2 {[%clk 0:02:55.9]} 7... O-O {[%clk 0:02:53.6]} 8. O-O {[%clk
0:02:56.3]} 8... Bxc3 {[%clk 0:02:52.3]} 9. Bxc3 {[%clk 0:02:56]} 9... d6 {[%clk
0:02:52.3]} 10. b3 {[%clk 0:02:55.4]} 10... Nbd7 {[%clk 0:02:51.5]} 11. Re1
{[%clk 0:02:51.8]} 11... e5 {[%clk 0:02:50.6]} 12. dxe5 {[%clk 0:02:42.9]} 12...
dxe5 {[%clk 0:02:49.7]} 13. Nxe5 {[%clk 0:02:38.2]} 13... Bxg2 {[%clk
0:02:28.3]} 14. Nxd7 {[%clk 0:02:37.8]} 14... Nxd7 {[%clk 0:02:23.8]} 15. Kxg2
{[%clk 0:02:37.2]} 15... Rad8 {[%clk 0:02:22.2]} 16. Qc2 {[%clk 0:02:33.5]}
16... f6 {[%clk 0:02:16.4]} 17. Rad1 {[%clk 0:02:33.6]} 17... Ne5 {[%clk
0:02:05.5]} 18. Rxd8 {[%clk 0:02:31.5]} 18... Rxd8 {[%clk 0:02:04.5]} 19. Rd1
{[%clk 0:02:31.8]} 19... Rxd1 {[%clk 0:01:42.8]} 20. Qxd1 {[%clk 0:02:31.1]}
20... c6 {[%clk 0:01:43.1]} 21. Qd4 {[%clk 0:02:26.7]} 21... h5 {[%clk
0:01:39.1]} 22. Qe4 {[%clk 0:02:26.5]} 22... Qd6 {[%clk 0:01:27.6]} 23. f4
{[%clk 0:02:21.8]} 23... Nd7 {[%clk 0:00:54.2]} 24. Qe8+ {[%clk 0:02:17.4]}
24... Nf8 {[%clk 0:00:53.1]} 25. Qxh5 {[%clk 0:02:18.3]} 25... Qd1 {[%clk
0:00:41.3]} 26. Qg4 {[%clk 0:02:15.1]} 26... Kf7 {[%clk 0:00:38.4]} 27. Qf3
{[%clk 0:02:11.3]} 27... Qc2 {[%clk 0:00:35.5]} 28. Kf2 {[%clk 0:02:02.3]} 28...
Ne6 {[%clk 0:00:32.4]} 29. Qxc6 {[%clk 0:01:58.4]} 29... Nc5 {[%clk 0:00:24.6]}
30. Qd5+ {[%clk 0:01:54.2]} 30... Kg6 {[%clk 0:00:21.8]} 31. Bb4 {[%clk
0:01:44.4]} 31... Ne4+ {[%clk 0:00:19.5]} 32. Kf3 {[%clk 0:01:44.8]} 32... f5
{[%clk 0:00:17.1]} 33. Qe6+ {[%clk 0:01:43.9]} 33... Nf6 {[%clk 0:00:17]} 34.
Be7 {[%clk 0:01:38.1]} 34... Qc3+ {[%clk 0:00:14.5]} 35. Qe3 {[%clk 0:01:38.6]}
35... Qb2 {[%clk 0:00:11.2]} 36. Bxf6 {[%clk 0:01:38.1]} 36... Kxf6 {[%clk
0:00:12.1]} 37. Qe5+ {[%clk 0:01:37.6]} 37... Qxe5 {[%clk 0:00:10.9]} 38. fxe5+
{[%clk 0:01:38.5]} 38... Kxe5 {[%clk 0:00:11.7]} 39. g4 {[%clk 0:01:35.1]} 39...
f4 {[%clk 0:00:11.2]} 40. h4 {[%clk 0:01:34]} 40... a5 {[%clk 0:00:09.6]} 41. h5
{[%clk 0:01:33.9]} 41... Kd4 {[%clk 0:00:06]} 42. Kxf4 {[%clk 0:01:33.6]} 42...
Kc3 {[%clk 0:00:06.9]} 43. g5 {[%clk 0:01:33.7]} 43... Kb2 {[%clk 0:00:07.8]}
44. h6 {[%clk 0:01:34]} 44... Kxa2 {[%clk 0:00:08.6]} 45. hxg7 {[%clk
0:01:33.6]} 45... Kxb3 {[%clk 0:00:09.5]} 46. g8=Q {[%clk 0:01:33.3]} 46... a4
{[%clk 0:00:10.4]} 47. c5+ {[%clk 0:01:33.7]} 47... Kb4 {[%clk 0:00:09.4]} 48.
cxb6 {[%clk 0:01:34.6]} 48... a3 {[%clk 0:00:09.6]} 49. b7 {[%clk 0:01:35]}
49... a2 {[%clk 0:00:10.5]} 50. b8=Q+ {[%clk 0:01:35.5]} 50... Ka3 {[%clk
0:00:09.8]} 51. Qgb3# {[%clk 0:01:35.3]} 1-0

[Event "*** Titled Tuesday Blitz"]
[Site "Chess.com"]
[Date "2021.02.09"]
[Round "1"]
[White "Natalya_Buksa"]
[Black "Sofiia_Hryzlova"]
[Result "1-0"]
[WhiteElo "2565"]
[BlackElo "2260"]
[TimeControl "180+1"]
[EndTime "10:06:26 PST"]
[Termination "Natalya_Buksa won on time"]

1. d4 {[%clk 0:02:59.3]} 1... Nf6 {[%clk 0:02:59]} 2. Nc3 {[%clk 0:02:59.7]}
2... e6 {[%clk 0:02:57.7]} 3. Bf4 {[%clk 0:02:59]} 3... c5 {[%clk 0:02:53.4]} 4.
e3 {[%clk 0:02:58.4]} 4... Nc6 {[%clk 0:02:41.4]} 5. Nb5 {[%clk 0:02:52.4]} 5...
d6 {[%clk 0:02:30.4]} 6. dxc5 {[%clk 0:02:52]} 6... e5 {[%clk 0:02:30.4]} 7. Bg5
{[%clk 0:02:50.3]} 7... dxc5 {[%clk 0:02:22.1]} 8. Qxd8+ {[%clk 0:02:49.3]} 8...
Kxd8 {[%clk 0:02:19.9]} 9. O-O-O+ {[%clk 0:02:50.2]} 9... Bd7 {[%clk 0:02:17.1]}
10. Nf3 {[%clk 0:02:49.1]} 10... a6 {[%clk 0:02:08]} 11. Nc3 {[%clk 0:02:39.7]}
11... Be7 {[%clk 0:01:27.1]} 12. Bxf6 {[%clk 0:02:29.3]} 12... gxf6 {[%clk
0:01:23.7]} 13. Nd5 {[%clk 0:02:29.6]} 13... Rc8 {[%clk 0:01:23.5]} 14. Bd3
{[%clk 0:02:25.4]} 14... Ke8 {[%clk 0:01:12.8]} 15. Nb6 {[%clk 0:02:20.5]} 15...
Rc7 {[%clk 0:01:12.3]} 16. Nxd7 {[%clk 0:02:14.6]} 16... Rxd7 {[%clk 0:01:11.4]}
17. Bf5 {[%clk 0:02:14.8]} 17... Rd6 {[%clk 0:01:05.6]} 18. Nh4 {[%clk
0:02:11.5]} 18... Kd8 {[%clk 0:00:49.5]} 19. Be4 {[%clk 0:02:11]} 19... Kc7
{[%clk 0:00:43.9]} 20. Nf5 {[%clk 0:02:11.2]} 20... Rxd1+ {[%clk 0:00:34.9]} 21.
Rxd1 {[%clk 0:02:10.6]} 21... Bd8 {[%clk 0:00:24.1]} 22. Bd5 {[%clk 0:02:01.5]}
22... Ne7 {[%clk 0:00:15.3]} 23. Nxe7 {[%clk 0:02:00.5]} 23... Bxe7 {[%clk
0:00:15.1]} 24. Bxf7 {[%clk 0:02:01.4]} 24... Bd6 {[%clk 0:00:15.1]} 25. g4
{[%clk 0:01:59.5]} 25... Rf8 {[%clk 0:00:14.7]} 26. Be6 {[%clk 0:01:59.3]} 26...
b6 {[%clk 0:00:13.9]} 27. h4 {[%clk 0:01:58.2]} 27... Re8 {[%clk 0:00:13.5]} 28.
Bf5 {[%clk 0:01:58]} 28... Re7 {[%clk 0:00:13.2]} 29. g5 {[%clk 0:01:52.6]}
29... fxg5 {[%clk 0:00:11.8]} 30. hxg5 {[%clk 0:01:53.5]} 30... Rg7 {[%clk
0:00:11.9]} 31. Rh1 {[%clk 0:01:54.2]} 31... Rxg5 {[%clk 0:00:10.5]} 32. Rxh7+
{[%clk 0:01:54.2]} 32... Kc6 {[%clk 0:00:10]} 33. Be4+ {[%clk 0:01:54.3]} 33...
Kb5 {[%clk 0:00:09.4]} 34. Kd2 {[%clk 0:01:48.1]} 34... Rg8 {[%clk 0:00:07.3]}
35. Kc3 {[%clk 0:01:46.9]} 35... Rf8 {[%clk 0:00:07.5]} 36. f3 {[%clk
0:01:46.7]} 36... Ka5 {[%clk 0:00:07.2]} 37. Kc4 {[%clk 0:01:44.8]} 37... Bb8
{[%clk 0:00:06.2]} 38. a3 {[%clk 0:01:41.3]} 38... Rd8 {[%clk 0:00:05.6]} 39.
b4+ {[%clk 0:01:40.5]} 39... cxb4 {[%clk 0:00:05.6]} 40. axb4+ {[%clk
0:01:41.4]} 40... Ka4 {[%clk 0:00:06]} 41. Rh6 {[%clk 0:01:36.8]} 41... Bc7
{[%clk 0:00:04.3]} 42. Kc3 {[%clk 0:01:31.9]} 42... Ka3 {[%clk 0:00:03.5]} 43.
Rh1 {[%clk 0:01:29.8]} 43... Ka4 {[%clk 0:00:02.3]} 44. Bd3 {[%clk 0:01:27.9]}
1-0

[Event "*** Titled Tuesday Blitz"]
[Site "Chess.com"]
[Date "2021.02.09"]
[Round "1"]
[White "Prostochendir"]
[Black "AttilaTurzo"]
[Result "1-0"]
[WhiteElo "2266"]
[BlackElo "2529"]
[TimeControl "180+1"]
[EndTime "10:06:26 PST"]
[Termination "Prostochendir won by resignation"]

1. e4 {[%clk 0:02:59.7]} 1... c5 {[%clk 0:02:59.5]} 2. b3 {[%clk 0:02:57.4]}
2... b6 {[%clk 0:02:58.2]} 3. Bb2 {[%clk 0:02:52.7]} 3... Bb7 {[%clk 0:02:55]}
4. d3 {[%clk 0:02:50.6]} 4... Nc6 {[%clk 0:02:51.2]} 5. Nf3 {[%clk 0:02:49.1]}
5... d6 {[%clk 0:02:48.9]} 6. Be2 {[%clk 0:02:47.7]} 6... e6 {[%clk 0:02:48.8]}
7. O-O {[%clk 0:02:47.7]} 7... Nf6 {[%clk 0:02:49.4]} 8. Nbd2 {[%clk 0:02:46.8]}
8... Be7 {[%clk 0:02:49.2]} 9. a4 {[%clk 0:02:47]} 9... O-O {[%clk 0:02:47.2]}
10. Re1 {[%clk 0:02:44.6]} 10... a6 {[%clk 0:02:46.3]} 11. d4 {[%clk 0:02:35.5]}
11... cxd4 {[%clk 0:02:43.4]} 12. Nxd4 {[%clk 0:02:36.4]} 12... Nxd4 {[%clk
0:02:43.3]} 13. Bxd4 {[%clk 0:02:35.5]} 13... Nxe4 {[%clk 0:02:43.7]} 14. Nxe4
{[%clk 0:02:31.9]} 14... Bxe4 {[%clk 0:02:44.6]} 15. Bxg7 {[%clk 0:02:15.1]}
15... Kxg7 {[%clk 0:02:40.8]} 16. Qd4+ {[%clk 0:02:13.4]} 16... Bf6 {[%clk
0:02:41.2]} 17. Qxe4 {[%clk 0:02:12.2]} 17... Bxa1 {[%clk 0:02:42.1]} 18. Rxa1
{[%clk 0:02:12]} 18... Qe7 {[%clk 0:02:31.9]} 19. Re1 {[%clk 0:02:03.7]} 19...
f5 {[%clk 0:02:27.7]} 20. Qe3 {[%clk 0:01:59.9]} 20... e5 {[%clk 0:02:10.4]} 21.
Qxb6 {[%clk 0:01:56.7]} 21... a5 {[%clk 0:02:08.9]} 22. Bc4 {[%clk 0:01:52.5]}
22... Rf6 {[%clk 0:01:56.4]} 23. Qc6 {[%clk 0:01:47.8]} 23... Rb8 {[%clk
0:01:50.4]} 24. Qd5 {[%clk 0:01:40.2]} 24... Qb7 {[%clk 0:01:48.3]} 25. Qxa5
{[%clk 0:01:35.5]} 25... Rg6 {[%clk 0:01:41.8]} 26. Bd5 {[%clk 0:01:22.1]} 26...
Qe7 {[%clk 0:01:28.9]} 27. Qd2 {[%clk 0:01:18.6]} 27... e4 {[%clk 0:01:25.2]}
28. a5 {[%clk 0:01:14.2]} 28... Qa7 {[%clk 0:01:06.8]} 29. b4 {[%clk 0:01:09]}
29... h6 {[%clk 0:01:00.5]} 30. c4 {[%clk 0:01:04.8]} 30... Kh7 {[%clk
0:01:00.5]} 31. b5 {[%clk 0:00:58.7]} 31... Qc5 {[%clk 0:00:59.4]} 32. a6 {[%clk
0:00:56.4]} 32... Rg7 {[%clk 0:00:55.6]} 33. Qe3 {[%clk 0:00:54]} 33... Qxe3
{[%clk 0:00:51.1]} 34. fxe3 {[%clk 0:00:53.1]} 34... Kg6 {[%clk 0:00:51.5]} 35.
Ra1 {[%clk 0:00:49.3]} 35... Ra7 {[%clk 0:00:50.9]} 36. Kf2 {[%clk 0:00:47]}
36... Kf6 {[%clk 0:00:50.5]} 37. g3 {[%clk 0:00:45.5]} 37... Ke5 {[%clk
0:00:50.8]} 38. Ke2 {[%clk 0:00:40.3]} 38... Rxb5 {[%clk 0:00:50.9]} 39. cxb5
{[%clk 0:00:39.3]} 39... Kxd5 {[%clk 0:00:51.8]} 40. b6 {[%clk 0:00:39]} 40...
Ra8 {[%clk 0:00:50.1]} 41. b7 {[%clk 0:00:38.3]} 1-0

[Event "*** Titled Tuesday Blitz"]
[Site "Chess.com"]
[Date "2021.02.09"]
[Round "1"]
[White "ChampStan"]
[Black "NiranjanNavalgund"]
[Result "0-1"]
[WhiteElo "2212"]
[BlackElo "2529"]
[TimeControl "180+1"]
[EndTime "10:06:27 PST"]
[Termination "NiranjanNavalgund won by resignation"]

1. d4 {[%clk 0:02:59.3]} 1... Nf6 {[%clk 0:02:59.8]} 2. c4 {[%clk 0:02:58.7]}
2... Nc6 {[%clk 0:02:58.8]} 3. Nf3 {[%clk 0:02:56.5]} 3... e6 {[%clk 0:02:58.8]}
4. Nc3 {[%clk 0:02:53.4]} 4... Bb4 {[%clk 0:02:58.2]} 5. Bg5 {[%clk 0:02:46.8]}
5... h6 {[%clk 0:02:57.4]} 6. Bxf6 {[%clk 0:02:44.9]} 6... Qxf6 {[%clk
0:02:56.6]} 7. e3 {[%clk 0:02:45.2]} 7... O-O {[%clk 0:02:55.7]} 8. Be2 {[%clk
0:02:43.5]} 8... d6 {[%clk 0:02:49.4]} 9. O-O {[%clk 0:02:43.3]} 9... Bxc3
{[%clk 0:02:49]} 10. bxc3 {[%clk 0:02:43.2]} 10... e5 {[%clk 0:02:49.9]} 11. Nd2
{[%clk 0:02:43]} 11... Qe7 {[%clk 0:02:46.4]} 12. Bf3 {[%clk 0:02:33.5]} 12...
Bd7 {[%clk 0:02:44]} 13. Rb1 {[%clk 0:02:31.9]} 13... Rab8 {[%clk 0:02:43.4]}
14. Bd5 {[%clk 0:02:13.6]} 14... Kh8 {[%clk 0:02:41.7]} 15. Qh5 {[%clk
0:02:10.7]} 15... f5 {[%clk 0:02:40.5]} 16. Nf3 {[%clk 0:02:07]} 16... Be8
{[%clk 0:02:38.7]} 17. Qh4 {[%clk 0:01:57.4]} 17... Rf6 {[%clk 0:02:29.5]} 18.
c5 {[%clk 0:01:40.3]} 18... e4 {[%clk 0:02:26.6]} 19. Nd2 {[%clk 0:01:28]} 19...
dxc5 {[%clk 0:02:25.1]} 20. f3 {[%clk 0:01:23.7]} 20... cxd4 {[%clk 0:02:15.3]}
21. cxd4 {[%clk 0:01:18.8]} 21... exf3 {[%clk 0:02:06.8]} 22. Rxf3 {[%clk
0:01:16.6]} 22... Bd7 {[%clk 0:01:59.5]} 23. Rg3 {[%clk 0:00:47.1]} 23... f4
{[%clk 0:01:49.5]} 24. exf4 {[%clk 0:00:28]} 24... Nxd4 {[%clk 0:01:49.6]} 25.
Bc4 {[%clk 0:00:23.3]} 25... Nf5 {[%clk 0:01:45.9]} 26. Qg4 {[%clk 0:00:19.1]}
26... Nxg3 {[%clk 0:01:40]} 27. Qxg3 {[%clk 0:00:20]} 27... Bf5 {[%clk
0:01:38.3]} 28. Re1 {[%clk 0:00:18.2]} 28... Qc5+ {[%clk 0:01:35.9]} 29. Kh1
{[%clk 0:00:18.7]} 29... Rd8 {[%clk 0:01:34.3]} 30. Qc3 {[%clk 0:00:13.2]} 30...
b5 {[%clk 0:01:27.8]} 31. Re5 {[%clk 0:00:11.9]} 31... Rxd2 {[%clk 0:01:04.6]}
32. Qxd2 {[%clk 0:00:08.5]} 32... Qxc4 {[%clk 0:01:03.1]} 0-1

[Event "*** Titled Tuesday Blitz"]
[Site "Chess.com"]
[Date "2021.02.09"]
[Round "1"]
[White "kuban1991"]
[Black "Das_Virus_2020"]
[Result "1-0"]
[WhiteElo "2894"]
[BlackElo "2450"]
[TimeControl "180+1"]
[EndTime "10:06:28 PST"]
[Termination "kuban1991 won by resignation"]

1. Nf3 {[%clk 0:02:55.5]} 1... Nf6 {[%clk 0:02:58.8]} 2. g3 {[%clk 0:02:55.1]}
2... c5 {[%clk 0:02:58.7]} 3. Bg2 {[%clk 0:02:53.6]} 3... g6 {[%clk 0:02:54.7]}
4. O-O {[%clk 0:02:54.5]} 4... Bg7 {[%clk 0:02:54.8]} 5. c4 {[%clk 0:02:54.8]}
5... O-O {[%clk 0:02:50.7]} 6. Nc3 {[%clk 0:02:55.1]} 6... d6 {[%clk 0:02:50.4]}
7. d3 {[%clk 0:02:54.9]} 7... Nc6 {[%clk 0:02:46.2]} 8. a3 {[%clk 0:02:54.9]}
8... a6 {[%clk 0:02:35]} 9. Rb1 {[%clk 0:02:54.7]} 9... Nd4 {[%clk 0:02:30.1]}
10. b4 {[%clk 0:02:49.2]} 10... Nxf3+ {[%clk 0:02:29.4]} 11. Bxf3 {[%clk
0:02:49.3]} 11... Qc7 {[%clk 0:02:26.5]} 12. Bd2 {[%clk 0:02:48]} 12... Rb8
{[%clk 0:02:16.5]} 13. b5 {[%clk 0:02:46.3]} 13... axb5 {[%clk 0:01:59.8]} 14.
Nxb5 {[%clk 0:02:45.4]} 14... Qd8 {[%clk 0:01:59.7]} 15. Qc2 {[%clk 0:02:30.3]}
15... Bd7 {[%clk 0:01:53]} 16. Rb3 {[%clk 0:02:30.2]} 16... Bc6 {[%clk
0:01:49.2]} 17. Bg2 {[%clk 0:02:30.3]} 17... Bxg2 {[%clk 0:01:45.8]} 18. Kxg2
{[%clk 0:02:31.2]} 18... Nd7 {[%clk 0:01:43.4]} 19. Rfb1 {[%clk 0:02:30.2]}
19... b6 {[%clk 0:01:42.5]} 20. Bc3 {[%clk 0:02:27.5]} 20... Ra8 {[%clk
0:01:36.2]} 21. Bxg7 {[%clk 0:02:25.9]} 21... Kxg7 {[%clk 0:01:37.1]} 22. Nc3
{[%clk 0:02:26.5]} 22... e6 {[%clk 0:01:34.5]} 23. Qb2 {[%clk 0:02:24.3]} 23...
f6 {[%clk 0:01:21]} 24. h4 {[%clk 0:02:10.9]} 24... h5 {[%clk 0:01:20.1]} 25.
Ne4 {[%clk 0:02:05.9]} 25... Qc7 {[%clk 0:01:14.2]} 26. Ng5 {[%clk 0:02:04.2]}
26... Rae8 {[%clk 0:01:12]} 27. Nf3 {[%clk 0:01:50.7]} 27... d5 {[%clk
0:01:09.9]} 28. a4 {[%clk 0:01:27.3]} 28... d4 {[%clk 0:00:40.1]} 29. a5 {[%clk
0:01:26.9]} 29... bxa5 {[%clk 0:00:39.7]} 30. Rb7 {[%clk 0:01:27.2]} 30... Qd6
{[%clk 0:00:39]} 31. Qb6 {[%clk 0:01:25.2]} 31... Qe7 {[%clk 0:00:30.1]} 32. Qc6
{[%clk 0:01:24.8]} 32... Rf7 {[%clk 0:00:29.2]} 33. Rc7 {[%clk 0:01:24.3]} 33...
a4 {[%clk 0:00:22]} 34. Rbb7 {[%clk 0:01:22.6]} 34... Rd8 {[%clk 0:00:20.5]} 35.
Qxa4 {[%clk 0:01:22.4]} 35... Qd6 {[%clk 0:00:19.9]} 36. Nd2 {[%clk 0:01:20.1]}
36... f5 {[%clk 0:00:18.1]} 37. Nf3 {[%clk 0:01:19.8]} 37... e5 {[%clk
0:00:18.3]} 38. Ng5 {[%clk 0:01:17]} 38... Re7 {[%clk 0:00:18.5]} 39. Rc6 {[%clk
0:01:17.1]} 39... Ra8 {[%clk 0:00:05.9]} 40. Rxd6 {[%clk 0:01:14.2]} 1-0

[Event "*** Titled Tuesday Blitz"]
[Site "Chess.com"]
[Date "2021.02.09"]
[Round "1"]
[White "KingCrusher275"]
[Black "MITerryble"]
[Result "0-1"]
[WhiteElo "2460"]
[BlackElo "2952"]
[TimeControl "180+1"]
[EndTime "10:06:29 PST"]
[Termination "MITerryble won on time"]

1. d4 {[%clk 0:03:00.9]} 1... e6 {[%clk 0:02:58.6]} 2. c4 {[%clk 0:03:01]} 2...
Bb4+ {[%clk 0:02:57.9]} 3. Nc3 {[%clk 0:02:59.1]} 3... c5 {[%clk 0:02:57.5]} 4.
d5 {[%clk 0:02:56.8]} 4... Bxc3+ {[%clk 0:02:56.6]} 5. bxc3 {[%clk 0:02:56.1]}
5... Qa5 {[%clk 0:02:57.5]} 6. Qd3 {[%clk 0:02:33.8]} 6... Nf6 {[%clk
0:02:56.5]} 7. Bd2 {[%clk 0:02:13.3]} 7... O-O {[%clk 0:02:52.5]} 8. Nf3 {[%clk
0:02:06]} 8... d6 {[%clk 0:02:50.3]} 9. Bg5 {[%clk 0:01:29.1]} 9... Ne4 {[%clk
0:02:47]} 10. Rc1 {[%clk 0:01:17.2]} 10... f5 {[%clk 0:02:36.7]} 11. g4 {[%clk
0:01:06.9]} 11... e5 {[%clk 0:02:21.8]} 12. Bh3 {[%clk 0:00:56.9]} 12... fxg4
{[%clk 0:02:02]} 13. Qxe4 {[%clk 0:00:52.5]} 13... Bf5 {[%clk 0:01:59.9]} 14.
Qe3 {[%clk 0:00:40.8]} 14... gxf3 {[%clk 0:02:00]} 15. Bxf5 {[%clk 0:00:40.8]}
15... Rxf5 {[%clk 0:02:00.9]} 16. Rg1 {[%clk 0:00:25]} 16... Qc7 {[%clk
0:02:00.1]} 17. exf3 {[%clk 0:00:21.7]} 17... Qf7 {[%clk 0:01:58.4]} 18. Rg3
{[%clk 0:00:20.7]} 18... Nd7 {[%clk 0:01:56.9]} 19. Ke2 {[%clk 0:00:20.5]} 19...
Kh8 {[%clk 0:01:50]} 20. Rcg1 {[%clk 0:00:20.5]} 20... Rf8 {[%clk 0:01:49.5]}
21. h4 {[%clk 0:00:17.2]} 21... Nf6 {[%clk 0:01:43.2]} 22. Bxf6 {[%clk
0:00:15.9]} 22... Qxf6 {[%clk 0:01:44.1]} 23. Rxg7 {[%clk 0:00:11]} 23... Rxf3
{[%clk 0:01:41.9]} 24. Rg8+ {[%clk 0:00:10]} 24... Rxg8 {[%clk 0:01:42]} 25.
Rxg8+ {[%clk 0:00:10.9]} 25... Kxg8 {[%clk 0:01:42.9]} 26. Qxf3 {[%clk
0:00:11.6]} 26... Qxh4 {[%clk 0:01:43.4]} 27. Qf5 {[%clk 0:00:10.9]} 27... Qxc4+
{[%clk 0:01:42.6]} 28. Kd2 {[%clk 0:00:09.3]} 28... Qxd5+ {[%clk 0:01:42.4]} 29.
Kc2 {[%clk 0:00:09.9]} 29... Qf7 {[%clk 0:01:41.1]} 30. Qc8+ {[%clk 0:00:10]}
30... Kg7 {[%clk 0:01:41.2]} 31. f3 {[%clk 0:00:08.7]} 31... Qxa2+ {[%clk
0:01:39.3]} 32. Kd3 {[%clk 0:00:08.5]} 32... Qf7 {[%clk 0:01:38.6]} 33. Qb8
{[%clk 0:00:08]} 33... Qd5+ {[%clk 0:01:36.4]} 34. Ke3 {[%clk 0:00:08]} 34... c4
{[%clk 0:01:28.7]} 35. Qc7+ {[%clk 0:00:07.6]} 35... Kg6 {[%clk 0:01:28.9]} 36.
Qe7 {[%clk 0:00:06.9]} 36... h5 {[%clk 0:01:14.2]} 37. Qe8+ {[%clk 0:00:06.3]}
37... Qf7 {[%clk 0:01:14.4]} 38. Qd8 {[%clk 0:00:05.7]} 38... Qf6 {[%clk
0:01:07.5]} 39. Qg8+ {[%clk 0:00:04.5]} 39... Kh6 {[%clk 0:01:07.9]} 0-1

[Event "*** Titled Tuesday Blitz"]
[Site "Chess.com"]
[Date "2021.02.09"]
[Round "1"]
[White "L1m96"]
[Black "ChessAdvanceUSA"]
[Result "0-1"]
[WhiteElo "2550"]
[BlackElo "2283"]
[TimeControl "180+1"]
[EndTime "10:06:29 PST"]
[Termination "ChessAdvanceUSA won by resignation"]

1. e4 {[%clk 0:03:00.9]} 1... Nc6 {[%clk 0:02:59.2]} 2. Nf3 {[%clk 0:03:00.6]}
2... d6 {[%clk 0:02:59.4]} 3. d4 {[%clk 0:02:59.4]} 3... Nf6 {[%clk 0:02:59.3]}
4. Nc3 {[%clk 0:02:59.4]} 4... g6 {[%clk 0:02:59.3]} 5. h3 {[%clk 0:02:53.4]}
5... Bg7 {[%clk 0:02:58.2]} 6. d5 {[%clk 0:02:48.6]} 6... Nb8 {[%clk 0:02:57.8]}
7. Bc4 {[%clk 0:02:46.2]} 7... O-O {[%clk 0:02:57.2]} 8. O-O {[%clk 0:02:46.1]}
8... a6 {[%clk 0:02:56.4]} 9. a4 {[%clk 0:02:44.4]} 9... c5 {[%clk 0:02:56.7]}
10. a5 {[%clk 0:02:42.7]} 10... Nbd7 {[%clk 0:02:54.8]} 11. Re1 {[%clk
0:02:42.3]} 11... b5 {[%clk 0:02:54.6]} 12. axb6 {[%clk 0:02:42]} 12... Nxb6
{[%clk 0:02:54.8]} 13. Bf1 {[%clk 0:02:40]} 13... a5 {[%clk 0:02:54.6]} 14. e5
{[%clk 0:02:30.8]} 14... dxe5 {[%clk 0:02:47.9]} 15. Nxe5 {[%clk 0:02:31.7]}
15... Nfxd5 {[%clk 0:02:46.6]} 16. Nc6 {[%clk 0:02:29.4]} 16... Qc7 {[%clk
0:02:29.3]} 17. Nxd5 {[%clk 0:02:13.2]} 17... Nxd5 {[%clk 0:02:29.3]} 18. Qxd5
{[%clk 0:02:13.8]} 18... Bb7 {[%clk 0:02:29.2]} 19. Bb5 {[%clk 0:01:28.5]} 19...
Rac8 {[%clk 0:02:24.5]} 20. Nxe7+ {[%clk 0:01:24.5]} 20... Qxe7 {[%clk
0:02:23.4]} 21. Rxe7 {[%clk 0:01:25.4]} 21... Bxd5 {[%clk 0:02:23.2]} 22. Rxa5
{[%clk 0:01:26]} 22... Ra8 {[%clk 0:02:14.6]} 23. Rxa8 {[%clk 0:01:21.8]} 23...
Rxa8 {[%clk 0:02:15.5]} 24. Re8+ {[%clk 0:01:21.4]} 24... Rxe8 {[%clk
0:02:10.9]} 25. Bxe8 {[%clk 0:01:22.3]} 25... Kf8 {[%clk 0:02:04.6]} 26. Bb5
{[%clk 0:01:20.8]} 26... c4 {[%clk 0:02:01.1]} 27. c3 {[%clk 0:01:18]} 27... f5
{[%clk 0:02:00.3]} 28. f3 {[%clk 0:01:16.1]} 28... Kf7 {[%clk 0:02:00.1]} 29.
Kf2 {[%clk 0:01:15.5]} 29... h5 {[%clk 0:01:59.5]} 30. Bf4 {[%clk 0:01:09.5]}
30... Bf6 {[%clk 0:01:55]} 31. Ke3 {[%clk 0:01:07.8]} 31... g5 {[%clk
0:01:52.5]} 32. Bd6 {[%clk 0:01:07.5]} 32... f4+ {[%clk 0:01:51.8]} 33. Kf2
{[%clk 0:01:03.7]} 33... h4 {[%clk 0:01:51]} 34. Bd7 {[%clk 0:01:00.3]} 34...
Be7 {[%clk 0:01:46.8]} 35. Ba3 {[%clk 0:00:36.9]} 35... Bd8 {[%clk 0:01:38.8]}
36. Bc5 {[%clk 0:00:35.6]} 36... Be7 {[%clk 0:01:37]} 37. Bd4 {[%clk 0:00:27.6]}
37... Bf6 {[%clk 0:01:36.8]} 38. Ke2 {[%clk 0:00:24.6]} 38... Bxd4 {[%clk
0:01:36.9]} 39. cxd4 {[%clk 0:00:25.5]} 39... Ke7 {[%clk 0:01:37.3]} 40. Bf5
{[%clk 0:00:24.9]} 40... Kd6 {[%clk 0:01:34.9]} 41. Kd2 {[%clk 0:00:24.8]} 41...
Kc6 {[%clk 0:01:32.1]} 42. Kc3 {[%clk 0:00:24.7]} 42... Kb5 {[%clk 0:01:32.3]}
43. Bd7+ {[%clk 0:00:23.7]} 43... Kb6 {[%clk 0:01:31.4]} 44. Bf5 {[%clk
0:00:20.8]} 44... Kb5 {[%clk 0:01:31]} 45. Bc2 {[%clk 0:00:18]} 45... g4 {[%clk
0:01:25.8]} 46. Be4 {[%clk 0:00:06.5]} 46... Bxe4 {[%clk 0:01:23.9]} 47. fxe4
{[%clk 0:00:06]} 47... f3 {[%clk 0:01:24.4]} 0-1